Cogmind - Beta 14 @@@ ROGUE MODE // 2024.12.15 @ 06:23:30 Player: Zoe Result: Destroyed by Y-45 Defender with Heavy Assault Rifle Performance ------------- Evolutions (1) 500 Regions Visited (3) 600 Robots Destroyed (18) 90 Value Destroyed (399) 399 Prototype IDs (0) 0 Alien Tech Used (0) 0 Bonus (0) 0 TOTAL SCORE: 1589 Bonus ------- None Cogmind --------- Core Integrity 0/400 Matter 330/400 Energy 74/100 System Corruption 0% Temperature Cool (45) Movement Core (450) Ox8 Location -9/Materials Parts ------- > --- POWER (2) -------- (None) > --- PROPULSION (2) --- (None) > --- UTILITY (3) ------ Large Storage Unit Medium Matter Pod Visual Processing Unit > --- WEAPON (2) ------- Beam Rifle > --- INVENTORY (15) --- Aluminum Leg Aluminum Leg Wheel Heat Sink Peak State ------------ > --- POWER ------------ Ion Engine Light Nuclear Core > --- PROPULSION ------- Light Treads Light Treads > --- UTILITY ---------- Large Storage Unit Medium Matter Pod Visual Processing Unit > --- WEAPON ----------- Particle Gun Improved Light Cannon > --- INVENTORY -------- Ion Engine Aluminum Leg Aluminum Leg Wheel Assault Rifle [Rating: 14] Favorites ----------- Power Ion Engine Engine Ion Engine Power Core Light Nuclear Core Propulsion Light Treads Treads Light Treads Leg Aluminum Leg Wheel Compact Wheel Flight Unit Flight Unit Utility Visual Processing Unit Storage Medium Matter Pod Processor Visual Processing Unit Weapon Assault Rifle Energy Gun Particle Gun Ballistic Gun Assault Rifle Ballistic Cannon Improved Light Cannon Build | -11 -10 -10 -9 ------- Run | Yrd Mat Min Mat Slots Evolved 2 | . . . 2 Power 1 | . . . 1 Propulsion . | . . . . Utility 1 | . . . 1 Weapon . | . . . . Parts Attached 24 | 8 4 1 11 Power 6 | 1 . 1 4 Engine 5 | 1 . . 4 Core 1 | . . 1 . Reactor . | . . . . Propulsion 7 | 4 . . 3 Treads 2 | 2 . . . Leg 1 | 1 . . . Wheel 1 | 1 . . . Hover . | . . . . Flight 3 | . . . 3 Utility 5 | 1 3 . 1 Device . | . . . . Storage 4 | 1 2 . 1 Processor 1 | . 1 . . Hackware . | . . . . Protection . | . . . . Artifact . | . . . . Weapon 6 | 2 1 . 3 Energy Gun 2 | . 1 . 1 Energy Cannon . | . . . . Ballistic Gun 3 | 2 . . 1 Ballistic Cannon 1 | . . . 1 Launcher . | . . . . Special Weapon . | . . . . Impact Weapon . | . . . . Slashing Weapon . | . . . . Piercing Weapon . | . . . . Special Melee Weapon . | . . . . Unidentified Prototypes . | . . . . Parts Lost 12 | . . . 12 Power 4 | . . . 4 Propulsion 5 | . . . 5 Utility . | . . . . Weapon 3 | . . . 3 Highest Loss Streak 8 | . . . 8 To Critical Strikes . | . . . . Average Slot Usage (%) 89 | . 98 100 78 Engine 11 | . 14 10 9 Core 2 | . . 4 3 Treads 17 | . 28 28 6 Flight 5 | . . . 10 Storage 17 | . 14 14 22 Processor 12 | . 12 14 11 Energy Gun 5 | . 4 14 4 Ballistic Gun 14 | . 23 14 6 Ballistic Cannon 1 | . . . 3 Peak Build Rating 14 | 6 9 11 14 Average Rating 8 | 4 8 9 9 On Entrance 6 | . 6 9 11 Naked Turns . | . . . . Heaviest Build 39 | 14 30 30 39 Greatest Support 40 | 40 40 40 40 Greatest Overweight (x) 8 | 1 . . 8 Average Overweight (x) . | . . . 2 Largest Inventory Capacity 15 | 8 15 15 15 Average Capacity 11 | 6 7 15 15 Most Carried 8 | 8 7 6 8 Average Carried 5 | 5 5 5 5 Final Capacity 15 | 8 15 15 15 Final Carried 6 | 6 5 6 4 Class Distribution -------------------- 92% | Mutant 7% | Scavenger-Mutant Dominant Class ---------------- Mutant | -10/Materials Mutant | -10/Mines Mutant | -9/Materials Resources | -11 -10 -10 -9 ----------- Run | Yrd Mat Min Mat Matter Collected 706 | 239 218 83 166 Remotely . | . . . . Salvage Created 487 | . 218 83 186 Parts 44 | . 15 6 23 Haulers Intercepted . | . . . . Recyclers Shooed . | . . . . Parts Field Recycled . | . . . . Retrieved Matter . | . . . . Parts Self-Destructed . | . . . . Prevented . | . . . . Kills | -11 -10 -10 -9 ------- Run | Yrd Mat Min Mat Combat Hostiles Destroyed 14 | . 3 2 9 Guns 10 | . 3 2 5 Cannons 4 | . . . 4 Classes Destroyed 6 | . 3 . 3 Builder 1 | . . . 1 Recycler 1 | . 1 . . Watcher 2 | . 2 . . Swarmer 7 | . . . 7 Grunt 5 | . 3 2 . Sentry 2 | . . . 2 Best Kill Streak 5 | . 3 2 5 Combat Bots Only 5 | . 2 2 5 Max Kills in Single Turn 2 | . 1 1 2 Gunslinging . | . . . . Exploded . | . . . . Melee . | . . . . Uniques/NPCs Destroyed . | . . . . Combat | -11 -10 -10 -9 -------- Run | Yrd Mat Min Mat Hostile Shots Fired 170 | . 38 7 125 Missed 42 | . 14 1 27 Damage Taken 1487 | . 282 78 1127 Core 431 | . 27 . 404 Absorbed by Shields . | . . . . Core Remaining (%) 94 | 100 . 89 . Volleys Fired 63 | . 17 3 43 Largest 2 | . 2 2 2 Hottest 104 | . 40 85 104 Shots Fired 96 | . 34 6 56 Gun 72 | . 34 6 32 Cannon 24 | . . . 24 Launcher . | . . . . Special . | . . . . Kinetic 72 | . 34 3 35 Thermal 24 | . . 3 21 Explosive . | . . . . Electromagnetic . | . . . . Robot Hit Streak 10 | . 6 3 10 Robot Miss Streak 9 | . 2 2 9 Penetration Max . | . . . . Secondary Targets 1 | . 1 . . Max Gunslinging Chain 1 | . 1 . . Shots Hit Robots 52 | . 20 3 29 Core Hits 27 | . 10 3 14 Critical Kills . | . . . . Critical Parts Destroyed . | . . . . Critical Strikes 2 | . . . 2 Burn 1 | . . . 1 Blast 1 | . . . 1 Melee Attacks . | . . . . Impact . | . . . . Slashing . | . . . . Piercing . | . . . . Sneak Attacks . | . . . . Combat Hostiles . | . . . . Follow-up Attacks . | . . . . Damage Inflicted 814 | . 253 45 516 Guns 600 | . 253 45 302 Cannons 214 | . . . 214 Explosions . | . . . . Melee . | . . . . Ramming . | . . . . Kinetic 584 | . 253 12 319 Thermal 230 | . . 33 197 Explosive . | . . . . Electromagnetic . | . . . . Impact . | . . . . Slashing . | . . . . Piercing . | . . . . Highest Corruption . | . . . . Average Corruption . | . . . . Corruption Purged . | . . . . Corruption Blocked . | . . . . Overload Shots . | . . . . Overflow Damage 4 | . . . 4 Projectiles 4 | . . . 4 Explosions . | . . . . Melee . | . . . . Knockbacks 1 | . . . 1 Impact . | . . . . Kinetic 1 | . . . 1 Secondary . | . . . . Self-Inflicted Damage . | . . . . Shots . | . . . . Rammed . | . . . . Targets Rammed . | . . . . Kicked . | . . . . Crushed . | . . . . Highest Temperature 362 | . 9 102 362 Average Temperature 113 | . 3 55 129 Received Heat Transfer 426 | . 123 42 261 Effects 4 | . . . 4 Shutdowns 2 | . . . 2 Energy Bleed 1 | . . . 1 Matter Decay 1 | . . . 1 Siege Activations . | . . . . Robots Corrupted . | . . . . Combat Hostiles . | . . . . Parts Fried . | . . . . Impact Corruptions . | . . . . Robots Melted . | . . . . Combat Hostiles . | . . . . Parts Melted . | . . . . Heat Transferred 629 | . . 74 555 Parts Sabotaged . | . . . . Parts Stolen . | . . . . Parts Stripped . | . . . . Power Chain Reactions . | . . . . Alert | -11 -10 -10 -9 ------- Run | Yrd Mat Min Mat Peak Influence 198 | . 184 50 198 Initial 19 | . . . 19 Average 89 | . 80 22 123 Maximum Alert Level . | . . . . Low Security (%) 100 | 100 100 100 100 Level 1 . | . . . . Level 2 . | . . . . Level 3 . | . . . . Level 4 . | . . . . Level 5 . | . . . . High Security . | . . . . Max Security . | . . . . Squads Dispatched 5 | . 3 . 2 Investigation 2 | . 2 . . Extermination . | . . . . Reinforcement 3 | . 1 . 2 Assault . | . . . . Garrison . | . . . . Intercept . | . . . . Searches Triggered . | . . . . Construction Impeded . | . . . . Haulers Reinforced . | . . . . Active Scanning Responses . | . . . . Cargo Convoy Interrupts . | . . . . Stealth | -11 -10 -10 -9 --------- Run | Yrd Mat Min Mat Distress Signals 2 | . . . 2 Communications Jammed . | . . . . Distress Signals . | . . . . Times Spotted 29 | . 10 2 17 Peak Tracking Total 6 | . 5 2 6 Tactical Retreats 1 | . . . 1 Traps | -11 -10 -10 -9 ------- Run | Yrd Mat Min Mat Traps Triggered 1 | . 1 . . Indirectly . | . . . . Trap Hack Attempts . | . . . . Triggered . | . . . . Disarmed . | . . . . Reprogrammed . | . . . . Reused . | . . . . Traps Extracted . | . . . . Installed . | . . . . Triggered . | . . . . Machines | -11 -10 -10 -9 ---------- Run | Yrd Mat Min Mat Machines Disabled . | . . . . Max in Single Turn . | . . . . Machines Repaired . | . . . . Machines Dismantled . | . . . . Machines Sabotaged . | . . . . Overloaded Fab Kills . | . . . . Hacking | -11 -10 -10 -9 --------- Run | Yrd Mat Min Mat Machines Accessed 3 | . 2 . 1 Terminals 3 | . 2 . 1 Fabricators . | . . . . Repair Stations . | . . . . Recycling Units . | . . . . Scanalyzers . | . . . . Garrison Access . | . . . . Total Hacks 7 | . 4 . 3 Successful 5 | . 3 . 2 Failed 2 | . 1 . 1 Catastrophic . | . . . . Database Lockouts . | . . . . Manual 3 | . 2 . 1 Terminals 7 | . 4 . 3 Fabricators . | . . . . Repair Stations . | . . . . Recycling Units . | . . . . Scanalyzers . | . . . . Garrison Access . | . . . . Terminal Hacks 5 | . 3 . 2 Record 4 | . 2 . 2 Hauler Manifests 1 | . 1 . . Fabricator Hacks . | . . . . Repair Station Hacks . | . . . . Recycling Unit Hacks . | . . . . Scanalyzer . | . . . . Garrison Access Hacks . | . . . . Unauthorized Hacks . | . . . . Terminals . | . . . . Fabricators . | . . . . Repair Stations . | . . . . Recycling Units . | . . . . Scanalyzers . | . . . . Garrison Access . | . . . . Data Cores Recovered . | . . . . Used . | . . . . Hacking Detections 2 | . 1 . 1 Full Trace Events 1 | . 1 . . Feedback Events . | . . . . Feedback Blocked . | . . . . Robot Schematics Acquired . | . . . . Robots Built . | . . . . Authchips . | . . . . Time . | . . . . Total Robot Build Rating . | . . . . Part Schematics Acquired . | . . . . Parts Built . | . . . . Authchips . | . . . . Time . | . . . . Total Part Build Rating . | . . . . Parts Repaired . | . . . . Time . | . . . . Parts Recycled . | . . . . Recycled Matter . | . . . . Retrieved Matter . | . . . . Retrieved Components . | . . . . Parts Scanalyzed . | . . . . Part Schematics Acquired . | . . . . Parts Damaged . | . . . . Bothacking | -11 -10 -10 -9 ------------ Run | Yrd Mat Min Mat Used RIF Installer . | . . . . Robots Hacked . | . . . . Non-combat . | . . . . Combat . | . . . . Robot Hacks Applied . | . . . . Relay Couplers Released . | . . . . Fabnet Peak Effective % . | . . . . Robots Rewired . | . . . . Allies Hacked . | . . . . Hacks Repelled . | . . . . Allies | -11 -10 -10 -9 -------- Run | Yrd Mat Min Mat Total Allies . | . . . . Largest Group . | . . . . Highest-Rated Group . | . . . . Highest-Rated Ally . | . . . . Total Orders . | . . . . Ally Attacks . | . . . . Total Damage . | . . . . Kills . | . . . . Allies Corrupted . | . . . . Allies Melted . | . . . . Intel | -11 -10 -10 -9 ------- Run | Yrd Mat Min Mat Robot Analysis Total . | . . . . Derelict Logs Recovered . | . . . . Drone Launches . | . . . . Drone Recoveries . | . . . . Exploration | -11 -10 -10 -9 ------------- Run | Yrd Mat Min Mat Turns Passed 1070 | 85 445 72 468 Spaces Moved 456 | 53 224 38 141 Core 17 | 10 . . 7 Treads 351 | 28 224 38 61 Legs 6 | 6 . . . Wheels 9 | 9 . . . Hover . | . . . . Flight 73 | . . . 73 Fastest Speed 50 | 50 160 160 160 Average Speed 182 | 127 160 160 246 Slowest Speed 600 | 190 160 160 600 Overloaded Moves . | . . . . Propulsion Burnouts . | . . . . Robots Hopped . | . . . . Cave-ins Triggered . | . . . . Exploration Rate (%) 21 | 4 45 22 15 Regions Visited 3 Branch Regions 1 Pre-discovered Areas . | . . . . Known Exits Taken . | . . . . Unknown Exits Taken 3 | 1 1 1 . Scrap Searched . | . . . . Spaces Dug . | . . . . Terrain Destroyed 2 | . . . 2 Melee . | . . . . Projectile 2 | . . . 2 AOE . | . . . . Terrain Rammed . | . . . . Walls Destroyed . | . . . . Machines Disabled . | . . . . Actions | -11 -10 -10 -9 --------- Run | Yrd Mat Min Mat Total 595 | 69 277 43 206 Wait 32 | . 28 1 3 Move 453 | 52 223 37 141 Hop . | . . . . Pick Up 18 | 7 3 1 7 Fast Attach 6 | 5 1 . . Attach 14 | 3 1 . 10 Detach 3 | 2 . . 1 Swap 4 | . 2 1 1 Drop 2 | . 2 . . Fire 63 | . 17 3 43 Melee . | . . . . Ram . | . . . . Kick . | . . . . Crush . | . . . . Escape Stasis . | . . . . Rewire . | . . . . Trap . | . . . . Miscellaneous . | . . . . Route ------- -11/Scrapyard -10/Materials (discovered 2 exits: *Mat / [*Min]) -10/Mines -9/Materials History --------- Turn | Location | Event 28 | -11/Scrapyard | Discovered new exit (range 13) 86 | -11/Scrapyard | Entered Materials 309 | -10/Materials | Build established: Mutant 444 | -10/Materials | Discovered new exit (range 3) 500 | -10/Materials | Discovered new exit (range 18) 531 | -10/Materials | Entered Mines 543 | -10/Mines | Discovered new exit (range 15) 603 | -10/Mines | Entered Materials 603 | -9/Materials | Evolved 2 slots: Power x1, Utility x1 777 | -9/Materials | Core integrity fell below 50% 813 | -9/Materials | Lost 8 parts (3p3n2w) 1052 | -9/Materials | Lost 4 parts (1p2n1w) 1063 | -9/Materials | Core integrity fell below 20% 1071 | -9/Materials | Destroyed by Y-45 Defender with Heavy Assault Rifle Last Messages --------------- Acquired 3 matter. Acquired 2 matter. O-16 Technician: "IFF HANDSHAKE FAILED. SECURING TERMINAL." Critical hit (Burn: +37). Flight Unit destroyed. Ion Engine destroyed. O-16 Technician uses terminal to summon reinforcements. ALERT: Hostiles spotted, dispatching reinforcements to Terminal M008. O-16 Technician locks terminal. Terminal unresponsive. Flight Unit destroyed. ALERT: Hostiles spotted, dispatching reinforcements to Terminal M004. R-06 Scavenger suffers critical hit (Burn). Assault Rifle destroyed. Y-45 Defender destroyed. K-01 Serf collects debris. Map ----- +----------------------------------------------------+ | ??????????????????????????#""" + T + | | ??????????????????????????#""" **# ### | | ??????????????????????????# %# #?# "" | | ??????????????????????############## ###?# "" | | ??????????????????????# #?????# #???# "" | | ??????????????????????#""" ####### #???# | | ??????????????????????#""" +% #???# | | ???????? ????????????#""" ####### ######## | | ????????? ????????????# #?????# # ##?? | | ????????? ???????????# #?????# # #?? | | ?????????? #####??????####+###?????# # #?? | | ?????????? ??????### ######## # #?? | | ??????????? ######??# #?? | | ???????????? #? ?# ########## #?? | | ????????????# #? """?## ##????????# #?? | | ????????????# #? ""???# #?????????# #?? | | ????????????# #? ""???# #????????## #?? | | ????????????# #? ????# #?????? #######?? | | ???????????## ## ????# #???? """#???????? | | ???????????# k##+###### #?? """#???????? | | ???????????# # """#???????? | | ???????????+ T k + #???????? | | ???????????# Y # """#???????? | | ???????????# ##Y########?? """#???????? | | ???????????## ## #??????? """#???????? | | ????????????# ## @ #????????? #???????? | | ????????????# ## [== #???????????#???????? | | ????????????# ## [== #???????????????????? | | ????????????# ## [== #???????????????????? | | ???????????? # #???????????????????? | | ??????????? ! ########???????????????????? | | ??????????? =% ???????????????????????????? | | ?????????? * ???????????????????????????? | | ?????????### ???????????????????????????? | | ???????????### ##???????????????????????????? | | ?????????????# ?????????????????????????????? | | ?????????????# ?????????????????????????????? | | ?????????????? ?????????????????????????????? | | ??????????????+?????????????????????????????? | | ????????????????????????????????????????????? | | ????????????????????????????????????????????? | | ????????????????????????????????????????????? | | ????????????????????????????????????????????? | | ????????????????????????????????????????????? | | ????????????????????????????????????????????? | | ????????????????????????????????????????????? | | ????????????????????????????????????????????? | | ????????????????????????????????????????????? | | ????????????????????????????????????????????? | | ????????????????????????????????????????????? | +----------------------------------------------------+ Best States ------------- Heat Dissipation 28 Energy Generation 19 Energy Capacity 400 Matter Stores 379 Matter Capacity 400 Sight Range 18 Terrain Scan Density 10 Evasion (%) 50 Recoil Reduction 2 Item Schematics ----------------- None Robot Schematics ------------------ None Fabricated ------------ Nothing Alien Tech Used ----------------- None Achievements -------------- Shopping List Challenges ------------ None Game ------ Seed TripodThermalArachnoskeleton Manual? 0 Play Time 00:15:29 Cumulative 2.0 hours Start 2024.12.15 @ 06:09:43 End 2024.12.15 @ 06:23:30 Sessions 1 Manual Loads 0 Difficulty Rogue Special Mode None Game No. 5 Rogue 2 Adventurer 3 Explorer 0 Win Type - Total 0 Types 0/0/0/0/0/0/0/0/0 Lore% 3 Gallery% 5 Achievement% 7 Wizard Run 0 Options --------- Layout 1 ASCII 0 Keyboard 0 Movement Mouse Keybinds 0 Fullscreen 1 Font 24/Smallcaps Map View 50x35 Zoom Use 0% Tactical HUD 0 Map Filters NONE Filters NONE Steam 1 RUN: ff45313e-420b-4194-9d74-e725be6f0c49